bitfinex-derivatives/quotes_ETHF0:USTF0_20260316
["timestamp","ask_amount","ask_price","bid_price","bid_amount"]
[1773651060862,3.01458892,2240.8,2239.8,2.78880317]
[1773651061759,3.01458892,2241.1,2240.2,2.78350791]
[1773651062460,3.01458892,2241.4,2240.4,2.78350791]
[1773651063259,0.00448772,2241.5,2240.8,2.78350791]
[1773651064264,3.01907664,2241.5,2240.8,2.78350791]
[1773651064862,0.00448772,2241.5,2240.8,2.78350791]
[1773651065068,3.01907664,2241.5,2240.3,2.78350791]
[1773651065463,3.01907664,2241.5,2240.4,2.78350791]
[1773651067361,3.01907664,2241.5,2240.2,2.78350791]
[1773651067566,3.01458892,2241.4,2240.2,2.78350791]
[1773651069370,3.01458892,2241.4,2240.0,2.78350791]
[1773651071067,3.23763892,2241.3,2240.0,2.78350791]
[1773651072468,3.01458892,2241.1,2240.0,2.78350791]
[1773651072668,3.01458892,2240.9,2240.0,2.78350791]
[1773651073567,3.01458892,2241.1,2240.0,2.78350791]
[1773651075165,3.01458892,2241.1,2240.2,2.78350791]
[1773651075562,0.22308,2241.0,2239.4,2.78350791]
[1773651075864,3.01458892,2240.2,2239.2,2.78350791]
[1773651076061,3.01458892,2240.0,2238.8,2.78350791]
[1773651076667,3.01458892,2239.8,2238.8,2.78350791]
[1773651076863,3.01790323,2239.8,2238.8,0.00534141]
[1773651078074,3.01790323,2239.8,2238.8,2.78884932]
[1773651081175,3.01790323,2239.8,2238.8,0.00534141]
[1773651081471,3.01790323,2239.8,2238.5,2.78350791]
[1773651081973,3.23553482,2239.8,2238.5,2.78350791]
[1773651082471,3.23553482,2239.8,2238.5,2.78902214]
[1773651082678,3.01790323,2239.8,2238.5,2.78902214]
[1773651082971,3.01790323,2239.8,2238.7,3.1853404]
[1773651083178,0.00331431,2239.8,2238.7,3.1853404]
[1773651083382,0.00331431,2239.8,2238.9,3.1853404]
[1773651083877,3.060926,2239.8,2238.9,3.1853404]
[1773651084478,0.00331431,2239.8,2238.9,3.1853404]
[1773651087079,3.060926,2239.8,2238.8,3.1853404]
[1773651088579,3.05761169,2239.6,2238.8,3.1853404]
[1773651088969,3.05761169,2239.4,2238.6,3.1853404]
[1773651089176,3.05761169,2239.2,2238.5,0.00551423]
[1773651089878,3.05761169,2239.2,2238.5,3.19085463]
[1773651090076,3.05761169,2238.9,2237.6,3.1853404]
[1773651090376,3.05761169,2238.9,2237.3,8.16337947]
[1773651090377,3.05761169,2238.5,2237.3,8.16337947]
[1773651090574,5.48912735,2238.6,2237.3,4.97803907]
[1773651090575,3.05761169,2238.3,2237.3,4.97803907]
[1773651090774,3.05761169,2238.1,2237.1,3.1853404]
[1773651090976,0.00344555,2238.1,2237.1,3.18929417]
[1773651091172,0.00344555,2238.1,2237.3,3.1853404]
[1773651091880,0.00344555,2238.1,2237.5,3.1853404]
[1773651092078,3.05761169,2238.6,2237.5,3.1853404]
[1773651092277,3.05761169,2238.6,2237.7,3.1853404]
[1773651092480,3.05761169,2239.1,2237.7,3.1853404]
[1773651092675,3.05761169,2238.9,2237.7,3.1853404]
[1773651092876,3.05761169,2238.9,2237.7,3.4087404]
[1773651093076,3.06218527,2238.9,2237.9,3.1853404]
[1773651093478,0.00457358,2238.9,2238.1,3.1853404]
[1773651094383,3.05761169,2239.3,2238.1,3.1853404]
[1773651094581,3.05761169,2239.6,2238.1,3.1853404]
[1773651094777,3.05761169,2239.6,2238.3,3.1853404]
[1773651095081,3.05761169,2239.6,2238.5,3.1853404]
[1773651095480,3.06120615,2239.6,2238.5,3.1853404]
[1773651096080,3.05761169,2239.4,2238.5,3.1853404]
[1773651103187,0.00359446,2239.6,2238.5,3.1853404]
[1773651103188,9.63788888,2239.3,2238.5,3.1853404]
[1773651103384,3.1268394,2239.3,2237.7,2.88111634]
[1773651103588,3.1268394,2239.1,2237.7,2.88111634]
[1773651103783,3.1268394,2238.9,2237.7,2.88111634]
[1773651104089,3.1268394,2238.7,2237.7,2.88111634]
[1773651104283,6.5098701,2238.6,2237.7,2.88111634]
[1773651104681,3.1268394,2238.5,2237.7,2.88111634]
[1773651104885,3.1268394,2238.3,2237.2,2.88111634]
[1773651105084,3.1268394,2238.1,2237.2,2.88111634]
[1773651105286,3.1268394,2238.1,2237.3,2.88111634]
[1773651105587,3.1268394,2237.9,2237.3,2.88111634]
[1773651105788,3.13136091,2237.9,2237.3,2.88111634]
[1773651106391,3.13136091,2237.9,2237.0,2.88111634]
[1773651106786,3.13136091,2237.9,2237.1,2.88507011]
[1773651108687,0.00452151,2237.9,2237.1,2.88507011]
[1773651110590,7.936,2238.5,2237.1,2.88507011]
[1773651110591,3.1268394,2238.4,2237.3,2.88111634]
[1773651110791,3.1268394,2238.6,2237.5,2.88111634]
[1773651111688,3.13130018,2238.6,2237.5,2.88111634]
[1773651112787,3.13130018,2238.6,2237.6,4.77232414]
[1773651112989,3.13130018,2238.6,2237.7,2.90849581]
[1773651114200,3.02458915,2238.4,2237.7,2.90849581]
[1773651117499,3.02904993,2238.6,2237.7,2.90849581]
[1773651117899,3.02904993,2238.6,2237.9,2.9072567]
[1773651117900,0.00446078,2238.6,2237.9,2.9072567]
[1773651119208,3.02458915,2239.0,2238.1,2.9072567]
[1773651119506,3.02458915,2239.2,2238.1,2.9072567]
[1773651119704,3.02458915,2239.2,2238.3,2.9072567]
[1773651120310,3.03019129,2239.2,2238.3,2.9072567]
[1773651121102,0.00560214,2239.2,2238.5,2.9072567]
[1773651121301,0.00560214,2239.2,2238.5,4.52395523]
[1773651121511,0.00560214,2239.2,2238.6,2.9072567]
[1773651122604,3.02458915,2239.9,2238.7,5.04454986]
[1773651122816,9.40286749,2239.8,2238.8,2.9072567]
[1773651123107,3.02458915,2239.8,2238.8,2.9072567]
[1773651123507,3.02932004,2239.8,2238.8,2.91051114]
[1773651125807,3.02932004,2239.8,2239.2,2.9072567]
[1773651125808,0.00473089,2239.8,2239.2,2.9072567]
[1773651126006,3.02458915,2240.2,2239.2,2.9072567]
[1773651126403,3.02458915,2240.2,2239.3,5.04290761]
[1773651126607,3.02458915,2240.2,2239.3,2.9072567]
[1773651127011,3.02458915,2240.1,2238.9,2.9072567]
[1773651127211,3.02458915,2240.0,2238.9,2.9072567]
[1773651129509,3.02907729,2240.2,2239.3,2.9072567]
[1773651133415,0.00448814,2240.2,2239.5,2.9072567]
[1773651133617,0.00448814,2240.2,2239.4,0.22324]
[1773651133618,3.02458915,2240.7,2239.7,2.9072567]
[1773651133819,3.02458915,2240.7,2239.9,2.9072567]
[1773651134422,3.02458915,2241.1,2240.2,2.9072567]
[1773651134612,3.02881174,2241.1,2240.2,2.9072567]
[1773651134818,3.02458915,2241.5,2240.5,2.9072567]
[1773651135221,3.02458915,2241.5,2240.7,2.9072567]
[1773651135421,3.02458915,2242.0,2240.7,2.9072567]
[1773651135921,3.02892571,2242.0,2240.7,2.91205301]
[1773651137319,6.30268051,2241.9,2240.2,2.9072567]
[1773651137525,3.02458915,2242.3,2241.2,2.9072567]
[1773651138523,3.02458915,2241.7,2240.6,2.9072567]
[1773651138922,3.02458915,2241.6,2240.6,2.9072567]
[1773651139616,3.02458915,2241.6,2240.6,2.91231855]
[1773651142023,7.898,2241.7,2240.7,5.16192821]
[1773651142223,3.02458915,2241.8,2240.8,2.9072567]
[1773651145628,3.11487673,2241.7,2240.8,2.9072567]
[1773651146228,3.11487673,2241.9,2240.9,3.09505232]
[1773651146426,3.11487673,2242.1,2241.2,3.09505232]
[1773651146827,3.11961469,2242.3,2241.2,3.09505232]
[1773651151535,0.00473796,2242.3,2241.5,3.09505232]
[1773651152137,0.00473796,2242.3,2241.7,3.09505232]
[1773651153037,3.11961469,2242.3,2241.7,3.09505232]
[1773651153236,4.469,2243.2,2242.1,3.09505232]
[1773651153535,3.11487673,2244.0,2242.9,3.09505232]
[1773651153740,3.11487673,2244.0,2243.1,3.09505232]
[1773651153937,3.11487673,2244.2,2243.3,3.09505232]
[1773651154236,3.11964662,2244.2,2243.3,3.09837871]
[1773651154835,3.11964662,2244.2,2243.3,0.00332639]
[1773651156639,3.11487673,2243.6,2242.6,3.09505232]
[1773651156841,3.11487673,2243.5,2242.6,3.09505232]
[1773651157537,3.11487673,2243.5,2242.6,3.10000921]
[1773651162244,7.874,2244.0,2242.8,3.09505232]
[1773651162245,3.11487673,2243.9,2242.8,3.09505232]
[1773651162639,1.61669853,2244.6,2243.5,3.09505232]
[1773651162845,3.11487673,2244.8,2243.5,3.09505232]
[1773651163242,3.11487673,2244.8,2243.6,4.85751597]
[1773651163444,3.11487673,2244.8,2243.7,3.09505232]
[1773651163636,3.11927277,2244.8,2243.8,3.09505232]
[1773651165949,3.11927277,2244.8,2243.4,0.22283]
[1773651165950,3.11927277,2244.8,2243.5,3.09505232]
[1773651167251,1.61669853,2244.6,2243.5,3.09505232]
[1773651167450,3.11487673,2244.5,2243.5,3.09505232]
[1773651168349,3.11487673,2244.3,2243.5,3.09505232]
[1773651168853,3.11487673,2244.3,2243.0,3.09505232]
[1773651169063,3.11487673,2244.3,2243.2,3.09505232]
[1773651170455,3.11487673,2244.1,2243.2,3.09505232]
[1773651170854,10.98087673,2244.0,2243.2,3.09505232]
[1773651171655,3.11487673,2243.9,2243.2,3.09505232]
[1773651174356,3.11487673,2243.9,2242.6,1.62165542]
[1773651174556,3.11487673,2243.9,2242.7,3.06566261]
[1773651174757,3.11487673,2243.9,2242.8,3.06566261]
[1773651175052,7.865,2243.8,2243.0,3.06566261]
[1773651175250,7.865,2243.8,2242.9,6.91143564]
[1773651175251,7.865,2243.8,2243.2,4.68236114]
[1773651175552,2.85734604,2244.1,2243.3,3.06566261]
[1773651175753,7.865,2243.9,2243.3,3.06566261]
[1773651176158,10.72234604,2243.9,2243.3,3.06566261]
[1773651176749,2.85734604,2243.8,2243.3,3.06566261]
[1773651177755,7.865,2243.9,2243.3,3.06566261]
[1773651177957,10.72234604,2243.9,2243.3,3.06566261]
[1773651178857,2.85734604,2243.9,2243.3,3.06566261]
[1773651179057,10.72334604,2243.9,2243.3,3.06566261]
[1773651179358,7.866,2243.8,2243.3,3.06566261]
[1773651180257,10.72334604,2243.8,2243.3,3.06566261]
[1773651180453,7.866,2243.8,2243.3,3.06566261]
[1773651180654,2.85734604,2244.3,2243.5,3.06566261]
[1773651180854,10.72434604,2244.3,2243.7,3.06566261]
[1773651181153,2.86174208,2244.8,2244.1,3.06566261]
[1773651181360,0.00439604,2244.8,2244.1,3.06566261]
[1773651182162,2.86174208,2244.8,2244.3,3.06566261]
[1773651182363,2.86174208,2244.8,2244.3,3.06980456]
[1773651182658,2.85734604,2244.6,2244.0,3.06566261]
[1773651182959,2.85734604,2244.6,2243.8,3.06566261]
[1773651183756,2.85734604,2244.6,2243.8,3.06928607]
[1773651184463,10.72874208,2244.8,2243.8,3.06928607]
[1773651185263,7.867,2244.7,2243.8,3.06928607]
[1773651185657,2.85734604,2244.6,2243.8,3.06928607]
[1773651187655,2.86174208,2244.8,2244.0,3.06566261]
[1773651187862,10.72874208,2244.8,2244.0,3.06566261]
[1773651188060,7.87039604,2244.8,2244.0,3.06566261]
[1773651188264,7.87039604,2244.8,2244.2,3.06566261]
[1773651188562,0.00439604,2244.8,2244.2,3.06566261]
[1773651188960,2.85734604,2245.0,2244.2,3.06566261]
[1773651190060,2.86161176,2245.0,2244.2,3.06566261]
[1773651191663,2.86161176,2245.0,2244.0,3.06566261]
[1773651191963,2.85734604,2244.8,2243.8,3.06928607]
[1773651195162,10.72234604,2244.8,2244.0,3.06566261]
[1773651195465,2.85734604,2244.8,2244.0,3.06566261]
[1773651195668,10.72234604,2244.7,2244.0,3.06566261]
[1773651196368,2.85734604,2244.7,2244.2,3.06566261]
[1773651196666,10.72234604,2244.7,2244.2,3.06566261]
[1773651197168,2.85734604,2244.6,2244.2,3.06566261]
[1773651198764,2.85734604,2244.6,2243.9,3.06566261]
[1773651202166,2.85734604,2244.6,2243.8,0.00362346]
[1773651202369,2.85734604,2244.6,2243.8,2.95281624]
[1773651202569,7.867,2244.5,2243.8,2.95281624]
[1773651203070,10.89853207,2244.5,2243.8,2.95281624]
[1773651203269,7.867,2244.4,2243.8,2.95281624]
[1773651204571,10.89853207,2244.4,2243.8,2.95281624]
[1773651204871,3.03153207,2244.3,2243.8,2.95281624]
[1773651205972,2.96473207,2244.3,2243.8,2.95281624]
[1773651209063,7.873,2244.2,2243.8,2.95281624]
[1773651209572,7.873,2244.5,2244.0,2.94919278]
[1773651210068,7.874,2244.5,2244.2,2.94919278]
[1773651210672,7.875,2244.5,2244.2,2.94919278]
[1773651212072,3.03153207,2244.8,2244.1,3.17196278]
[1773651212275,7.877,2244.8,2244.1,3.17196278]
[1773651213974,10.90853207,2244.8,2244.1,3.17196278]
[1773651214272,3.03579779,2245.0,2244.5,0.22272]
[1773651214476,3.03579779,2245.0,2244.1,2.94919278]
[1773651215880,3.03153207,2244.8,2244.1,2.94919278]
[1773651216269,3.03153207,2244.8,2244.2,3.17195278]
[1773651217070,10.91353207,2244.8,2244.2,3.17195278]
[1773651218575,3.03153207,2244.7,2244.2,3.17195278]
[1773651219182,3.03153207,2244.7,2244.2,2.94919278]
[1773651221480,3.03153207,2244.7,2243.9,2.94919278]
[1773651221775,3.03153207,2244.7,2243.9,8.04974831]
[1773651221976,3.03153207,2244.7,2243.9,5.10055553]
[1773651222182,3.03153207,2244.7,2243.8,0.00362346]
[1773651222777,3.03153207,2244.7,2243.8,2.95281624]
[1773651223781,3.03153207,2244.7,2243.8,0.00362346]
[1773651225386,3.03153207,2244.5,2243.8,0.00362346]
[1773651228884,3.03153207,2244.3,2243.8,2.95281624]
[1773651229184,7.896,2244.2,2243.8,2.95281624]
[1773651229586,3.03153207,2244.2,2243.8,2.95281624]
[1773651231888,10.93153207,2244.2,2243.8,2.95281624]
[1773651234189,7.9,2244.2,2243.8,2.95281624]
[1773651234384,7.904,2244.5,2243.9,3.23679256]
[1773651235284,11.05261225,2244.5,2243.9,3.23679256]
[1773651235782,3.14861225,2244.4,2243.9,3.23679256]
[1773651235986,0.00426572,2245.0,2243.9,3.23679256]
[1773651235987,3.14861225,2244.8,2243.9,3.23679256]
[1773651236187,3.14861225,2244.6,2243.9,3.23679256]
[1773651236388,11.05461225,2244.6,2243.9,3.23679256]
[1773651238792,3.14861225,2244.6,2243.9,3.23679256]
[1773651238985,11.05761225,2244.6,2243.9,3.23679256]
[1773651239594,3.14861225,2244.6,2243.9,3.23679256]
[1773651239789,11.05861225,2244.6,2243.9,3.23679256]
[1773651240192,3.14861225,2244.9,2243.9,3.23679256]
[1773651240393,7.911,2244.7,2244.1,3.01400256]
[1773651240893,7.911,2244.9,2244.5,3.01400256]
[1773651241093,7.911,2244.9,2244.4,0.22274]
[1773651241094,3.14861225,2244.8,2244.4,0.22274]
[1773651242197,3.14861225,2244.8,2243.9,3.23679256]
[1773651242395,11.06161225,2244.7,2243.9,3.23679256]
[1773651242590,11.06161225,2244.7,2244.0,3.01400256]
[1773651242893,3.14861225,2244.6,2244.0,3.01400256]
[1773651243094,3.14861225,2244.6,2244.2,3.01400256]
[1773651243293,3.14861225,2244.6,2244.1,3.23677256]
[1773651244586,3.14861225,2244.8,2244.1,3.23677256]
[1773651246497,3.14861225,2244.7,2244.1,3.23677256]
[1773651247291,11.06561225,2244.8,2244.1,3.23677256]
[1773651247595,3.14861225,2244.7,2244.1,3.23677256]
[1773651247793,3.14861225,2244.9,2244.1,3.23677256]
[1773651247988,3.14861225,2244.9,2243.9,10.5189887]
[1773651247989,3.14861225,2244.9,2244.3,3.23675256]
[1773651248296,0.00426572,2245.0,2244.3,3.23675256]
[1773651248297,7.92226572,2245.0,2244.3,3.23675256]
[1773651248498,11.07087797,2245.0,2244.3,3.23675256]
[1773651248992,3.15287797,2245.0,2244.3,3.23675256]
[1773651250495,3.14861225,2245.5,2245.0,3.01400256]
[1773651250693,3.14861225,2245.7,2245.2,3.01400256]
[1773651250887,3.14861225,2245.7,2245.1,0.22267]
[1773651251292,1.6074187,2246.5,2244.5,1.6074187]
[1773651251293,11.40229301,2247.4,2245.4,2.1063398]
[1773651251494,2.90780899,2246.4,2245.5,0.67498418]
[1773651251699,1.79153208,2246.4,2245.6,0.67498418]
[1773651251997,1.79153208,2246.4,2245.7,0.67498418]
[1773651252197,1.79153208,2246.4,2245.8,0.67498418]
[1773651252399,1.79153208,2246.4,2245.9,0.67498418]
[1773651252593,7.92,2246.3,2246.0,0.67498418]
[1773651252789,3.14861225,2246.2,2245.4,1.78904741]
[1773651253500,3.14861225,2246.2,2245.7,2.00161302]
[1773651253693,3.14861225,2246.4,2245.7,2.00161302]
[1773651254901,7.883,2246.3,2245.7,2.00161302]
[1773651255301,3.14861225,2246.4,2245.7,2.00161302]
[1773651256499,11.01561225,2246.3,2245.7,2.00161302]
[1773651256706,10.97761225,2246.3,2245.7,2.00161302]
[1773651257803,10.98661225,2246.3,2245.7,2.00161302]
[1773651258007,3.14861225,2246.2,2245.5,2.3643723]
[1773651258505,3.14861225,2246.2,2245.4,0.22707163]
[1773651259607,3.14861225,2246.5,2246.0,1.6074187]
[1773651259905,3.14861225,2246.4,2245.9,0.22259]
[1773651260109,3.15215813,2246.6,2246.0,1.53644906]
[1773651260702,3.15215813,2246.6,2245.9,0.22259]
[1773651261308,10.93261225,2246.5,2245.9,1.86283078]
[1773651261509,3.14861225,2246.4,2245.9,1.86283078]
[1773651261710,0.00354588,2246.6,2245.9,1.86283078]
[1773651261711,3.15215813,2246.6,2245.9,1.86283078]
[1773651264704,7.725,2246.5,2246.0,0.62601467]
[1773651264913,3.66044423,2246.4,2246.1,0.62601467]
[1773651265115,3.66399011,2246.6,2246.2,3.01232706]
[1773651265317,7.714,2246.5,2246.3,0.62601467]
[1773651265510,3.66044423,2246.5,2246.0,2.38468778]
[1773651265712,3.66044423,2246.4,2246.0,2.38468778]
[1773651265912,3.66044423,2246.4,2245.7,3.57916266]
[1773651266516,3.37106726,2246.4,2245.7,3.57916266]
[1773651266816,3.37106726,2246.4,2245.9,3.57916266]
[1773651267009,11.08506726,2246.4,2245.9,3.57916266]
[1773651267606,3.37106726,2246.4,2245.9,3.57916266]
[1773651267813,11.10006726,2246.4,2245.9,3.57916266]
[1773651268618,3.66399011,2246.6,2245.9,3.57916266]
[1773651269009,11.41499011,2246.6,2245.9,3.57916266]
[1773651269817,3.66044423,2246.5,2245.9,3.57916266]
[1773651271622,2.64764738,2246.5,2245.8,0.2226]
[1773651272324,2.64764738,2246.5,2245.5,3.57916266]
[1773651272721,3.66044423,2246.4,2245.8,3.80176266]
[1773651273225,3.66044423,2246.4,2245.8,0.2226]
[1773651274721,3.66044423,2246.4,2245.4,3.58360429]
[1773651275023,3.66044423,2246.4,2245.5,3.80179266]
[1773651275217,3.66044423,2246.4,2245.5,0.22263]
[1773651275422,3.66044423,2246.2,2245.5,0.22263]
[1773651276221,3.66044423,2246.2,2245.5,3.80179266]
[1773651276622,3.66044423,2246.2,2245.9,3.80174266]
[1773651277017,3.66044423,2246.2,2245.9,0.22258]
[1773651277625,3.66044423,2246.2,2246.0,0.5895852]
[1773651277828,3.66044423,2246.2,2246.1,0.5895852]
[1773651279127,3.66044423,2246.5,2246.1,0.5895852]
[1773651279322,3.66044423,2246.5,2246.2,0.5895852]
[1773651279628,3.66044423,2246.5,2246.3,0.5895852]
[1773651279828,3.66044423,2246.5,2246.4,0.5895852]
[1773651280030,3.66044423,2246.5,2245.9,0.22258]
[1773651280428,3.66044423,2246.3,2245.9,3.80174266]
[1773651280727,2.62130296,2246.3,2245.9,3.80174266]
[1773651281521,11.54044423,2246.5,2245.9,3.80174266]
[1773651281729,3.66044423,2246.4,2245.9,3.80174266]
[1773651282224,7.885,2246.5,2245.9,3.80174266]
[1773651282430,11.54999011,2246.6,2245.9,3.80174266]
[1773651282628,3.66044423,2246.5,2245.9,3.80174266]
[1773651283727,3.66044423,2246.4,2245.9,3.80174266]
[1773651284434,11.55899011,2246.6,2245.9,3.80174266]
[1773651284629,3.66044423,2246.5,2245.9,3.80174266]
[1773651284827,3.66044423,2246.5,2246.2,0.99069223]
[1773651285129,3.66044423,2246.5,2246.0,0.99069223]
[1773651285934,3.66044423,2246.5,2246.0,4.56985489]
[1773651288731,3.66044423,2246.5,2246.0,0.99069223]
[1773651289530,3.66044423,2246.5,2245.7,4.56985489]
[1773651289731,3.66044423,2246.5,2245.8,4.56985489]
[1773651290334,3.66044423,2246.5,2245.8,0.99069223]
[1773651291842,3.22634399,2246.5,2245.8,0.99069223]
[1773651292039,3.22634399,2246.5,2245.9,0.53802341]
[1773651292240,3.22634399,2246.5,2246.0,0.53802341]
[1773651292539,3.69538463,2246.3,2245.8,0.99069223]
[1773651292735,7.922,2246.4,2245.8,0.99069223]
[1773651292736,7.923,2246.4,2246.2,0.99069223]
[1773651292934,9.06148549,2246.4,2246.0,0.99069223]
[1773651293134,1.13848549,2246.3,2245.9,3.60981567]
[1773651293737,1.13848549,2246.3,2245.8,0.22259]
[1773651293937,1.13848549,2246.3,2245.8,3.83240567]
[1773651294141,1.13848549,2246.3,2245.8,4.8230979]
[1773651294443,7.927,2246.2,2245.9,3.94982853]
[1773651294642,9.70219759,2246.2,2245.9,3.94982853]
[1773651294942,8.97871007,2246.2,2245.9,3.94982853]
[1773651295338,7.20351248,2246.2,2245.9,3.94982853]
[1773651295543,1.71230721,2246.4,2246.0,0.99069223]
[1773651295736,9.64130721,2246.3,2246.0,0.99069223]
[1773651296246,9.64230721,2246.3,2246.0,0.99069223]
[1773651296434,1.76348331,2246.2,2245.9,3.94982853]
[1773651296633,1.76348331,2246.2,2245.8,5.16311076]
[1773651296837,1.76348331,2246.2,2245.4,3.95427016]
[1773651297032,1.76348331,2246.2,2245.5,3.94982853]
[1773651299740,9.71099744,2246.1,2245.8,4.94052076]
[1773651299933,7.937,2246.0,2245.9,3.94982853]
[1773651300334,7.937,2246.0,2245.8,0.99069223]
[1773651300540,7.937,2246.0,2245.8,4.94052076]
[1773651300940,3.98012998,2245.9,2245.7,0.2226]
[1773651302440,3.98012998,2246.0,2245.7,0.2226]
[1773651302740,7.941,2246.0,2245.7,4.17242853]
[1773651304548,11.92112998,2246.0,2245.7,4.17242853]
[1773651304945,11.19761025,2246.0,2245.7,4.17242853]
[1773651305142,11.08261869,2246.0,2245.7,4.17242853]
[1773651306746,11.92712998,2246.0,2245.7,4.17242853]
[1773651307547,11.92712998,2246.0,2245.7,0.2226]
[1773651307743,3.98012998,2246.0,2245.7,0.2226]
[1773651307944,3.98012998,2245.9,2245.7,0.2226]
[1773651310748,11.92812998,2246.0,2245.7,0.2226]
[1773651311946,3.98012998,2245.9,2245.7,0.2226]
[1773651313051,11.92812998,2246.0,2245.7,0.2226]
[1773651313449,3.98012998,2246.5,2245.8,3.94982853]
[1773651313650,3.98012998,2246.4,2245.5,3.94982853]
[1773651313852,3.98012998,2246.4,2245.7,0.2226]
[1773651314051,3.98012998,2246.4,2245.4,3.95427016]
[1773651316553,3.98012998,2246.2,2245.4,3.95427016]
[1773651317157,3.98012998,2246.0,2245.4,3.95427016]
[1773651317357,11.94112998,2245.9,2245.4,3.95427016]
[1773651318058,3.98012998,2245.8,2245.4,3.95427016]
[1773651319852,3.98012998,2245.7,2245.4,0.00444163]
[1773651320058,3.98012998,2245.7,2245.4,3.95427016]
[1773651320557,7.963,2245.8,2245.4,3.95427016]
[1773651320756,11.94312998,2245.8,2245.4,3.95427016]
[1773651321360,3.98012998,2245.7,2245.4,3.95427016]
[1773651321749,3.98012998,2245.7,2245.4,0.00444163]
[1773651322459,3.98012998,2245.7,2245.4,3.9884716]
[1773651322659,4.211503,2245.8,2245.4,3.9884716]
[1773651322850,7.966,2245.8,2245.5,4.20665997]
[1773651323257,4.18676588,2245.8,2245.5,4.20665997]
[1773651323456,7.967,2245.8,2245.5,4.20665997]
[1773651324760,4.18708715,2245.9,2245.5,4.20665997]
[1773651325160,12.15508715,2245.9,2245.5,4.20665997]
[1773651325862,4.18708715,2245.9,2245.5,4.20665997]
[1773651326061,12.15608715,2245.9,2245.5,4.20665997]
[1773651326663,4.18564201,2245.8,2245.5,4.20665997]
[1773651326962,4.18564201,2245.8,2245.4,0.00444163]
[1773651327358,3.46205462,2245.8,2245.4,0.00444163]
[1773651328357,3.52564197,2246.4,2245.5,3.98402997]
[1773651328665,3.52564197,2246.1,2245.5,0.22263]
[1773651328866,3.52564197,2246.1,2245.4,0.00444163]
[1773651329460,3.52564197,2246.1,2245.5,0.22263]
[1773651329662,3.52564197,2246.1,2245.1,3.98402997]
[1773651330367,3.086249,2245.9,2245.1,3.98402997]
[1773651330568,11.060249,2245.9,2245.5,4.20665997]
[1773651330758,3.08276568,2245.8,2245.5,4.20665997]
[1773651331365,2.38082369,2246.0,2245.5,4.20665997]
[1773651331565,7.975,2246.1,2245.8,3.98402997]
[1773651331965,10.35230238,2246.1,2245.8,3.98402997]
[1773651332772,7.975,2246.3,2245.9,5.65493128]
[1773651333071,7.975,2246.4,2246.0,4.44497895]
[1773651333276,0.07363001,2246.3,2245.5,5.43609004]
[1773651333475,0.07363001,2246.3,2245.5,4.44497895]
[1773651334075,0.07363001,2246.3,2245.4,0.22263]
[1773651335376,0.07363001,2246.3,2245.1,4.47310276]
[1773651335680,1.0857446,2246.1,2245.0,4.58793659]
[1773651337980,1.08531131,2245.9,2245.0,4.58793659]
[1773651338280,1.08531131,2245.7,2245.0,4.58793659]
[1773651338981,1.08531131,2245.7,2245.0,0.00351883]
[1773651339473,1.08531131,2245.7,2245.1,4.81225227]
[1773651343284,1.08531131,2245.7,2245.1,0.22267]
[1773651344185,1.06358369,2246.4,2245.6,4.81507547]
[1773651344386,1.06358369,2246.2,2245.6,4.81507547]
[1773651344585,1.06358369,2246.2,2245.6,0.22262]
[1773651344784,1.06046141,2246.0,2245.6,0.22262]
[1773651344985,1.09304046,2245.9,2245.6,4.79878594]
[1773651345479,1.09304046,2245.9,2245.6,0.22262]
[1773651346587,1.07527649,2246.5,2245.6,4.80441378]
[1773651346791,1.07527649,2246.3,2245.6,4.80441378]
[1773651349389,1.14851147,2246.1,2245.6,4.80441378]
[1773651349885,9.12251147,2246.1,2245.6,4.80441378]
[1773651351791,1.14483937,2246.0,2245.6,4.80441378]
[1773651352688,7.973,2246.1,2245.6,4.80441378]
[1773651353492,7.972,2246.1,2245.6,4.80441378]
[1773651355293,1.15824564,2246.2,2245.6,4.80441378]
[1773651355491,7.972,2246.1,2245.6,4.80441378]
[1773651355695,9.11353416,2246.1,2245.6,4.80441378]
[1773651356789,1.14669862,2246.0,2245.6,4.80441378]
[1773651359094,9.11085886,2246.1,2245.6,4.80441378]
[1773651359292,1.13885886,2246.5,2245.8,5.27960232]
[1773651359596,1.13438936,2246.4,2245.8,5.27960232]
[1773651359993,9.10407662,2246.3,2245.8,5.27960232]
[1773651360495,1.12953957,2246.2,2245.8,5.27960232]
[1773651361798,9.09853957,2246.2,2245.8,5.27960232]
[1773651361997,1.10106764,2246.1,2245.8,5.27960232]
[1773651363200,1.10106764,2246.1,2245.8,0.2226]
[1773651366404,1.08340005,2246.2,2245.8,6.27081845]
[1773651366605,7.967,2246.1,2245.8,6.27081845]
[1773651367502,9.04524981,2246.1,2245.8,5.27960232]
[1773651368295,9.04524981,2246.1,2245.8,0.2226]
[1773651368500,1.07622883,2246.0,2245.8,0.2226]
[1773651368696,9.04322883,2246.1,2245.8,0.2226]
[1773651369803,7.966,2246.1,2245.8,6.27081845]
[1773651370203,9.03763347,2246.1,2245.8,6.27081845]
[1773651370595,9.03763347,2246.1,2245.8,1.21381613]
[1773651371204,1.07163347,2246.1,2245.8,0.2226]
[1773651371511,9.03663347,2246.1,2245.8,5.27960232]
[1773651371804,7.965,2246.1,2245.8,5.27960232]
[1773651372003,9.0482742,2246.1,2245.8,5.27960232]
[1773651372205,1.0832742,2246.0,2245.6,5.05700232]
[1773651372399,0.35973192,2246.0,2245.6,5.05700232]
[1773651372807,0.35973192,2246.0,2245.4,6.04821845]
[1773651376111,0.39585077,2245.8,2245.3,5.27964232]
[1773651377510,7.962,2246.2,2245.7,6.04821845]
[1773651377711,8.34802795,2246.2,2245.7,6.04821845]
[1773651378009,7.962,2246.2,2245.9,6.04821845]
[1773651378209,0.41003165,2246.4,2245.9,6.04821845]
[1773651378405,7.962,2246.3,2245.9,6.04821845]
[1773651378802,0.41003165,2246.4,2245.9,6.04821845]
[1773651379001,7.962,2246.3,2245.9,6.04821845]
[1773651379208,8.31185681,2246.3,2245.9,5.05700232]
[1773651380215,7.961,2246.2,2245.9,5.05700232]
[1773651382416,8.3073414,2246.2,2245.9,5.05700232]
[1773651383011,0.3463414,2246.2,2245.9,5.05700232]
[1773651383210,7.96,2246.1,2245.9,5.05700232]
[1773651384116,7.96,2246.1,2245.7,1.21381613]
[1773651384316,7.96,2246.1,2245.8,4.90186382]
[1773651385714,0.33789902,2246.5,2245.8,4.90186382]
[1773651385914,0.34345645,2246.2,2245.8,4.90186382]
[1773651389823,0.34345645,2246.2,2245.5,4.89539697]
[1773651393024,0.34345645,2246.2,2245.7,4.90654124]
[1773651394226,0.27839513,2246.3,2245.7,4.90654124]
[1773651398227,0.27034273,2246.2,2245.7,4.90654124]
[1773651399922,0.27034273,2246.2,2245.4,4.89820195]
[1773651400225,0.27034273,2246.2,2245.4,5.88941808]
[1773651401029,7.95,2246.1,2245.7,4.89721015]
[1773651401229,0.25344807,2246.4,2245.7,4.89721015]
[1773651401429,7.95,2246.3,2245.7,4.89721015]